bitfinex-derivatives/quotes_ETHF0:USTF0_20210111
["timestamp","ask_amount","ask_price","bid_price","bid_amount"]
[1610382305485,4.00959,976.12,974.92,0.31562091]
[1610382305886,4.00959,976.12,974.53,1.57810453]
[1610382305887,4.00959,976.12,974.71,0.31559627]
[1610382306286,4.00959,976.12,974.79,0.31561666]
[1610382306485,4.00959,975.41,974.54,0.31563713]
[1610382306686,6.34959,975.41,974.54,0.31563713]
[1610382306886,6.34959,975.41,974.19,0.31576694]
[1610382307288,6.34959,975.41,974.64,0.31562211]
[1610382307487,6.34959,975.41,974.93,0.31561787]
[1610382307886,2.34,975.41,974.41,0.31562146]
[1610382308287,2.34,975.41,974.31,0.63124291]
[1610382308288,2.34,975.41,975.36,0.63090792]
[1610382308487,1.498,976.25,975.4,4.00959]
[1610382308889,1.498,976.25,975.65,0.31541081]
[1610382309288,4.00959,976.45,975.65,1.509]
[1610382309490,1.94,976.69,975.65,1.509]
[1610382309892,30.0,980.82,975.71,0.31535491]
[1610382310091,79.3554,978.01,975.71,0.31535491]
[1610382310291,80.8604,978.01,975.72,0.31535702]
[1610382310490,80.8604,978.01,976.04,0.31530098]
[1610382310891,110.8604,978.01,976.01,1.928]
[1610382311091,110.8604,978.01,975.66,0.31543937]
[1610382311292,110.8604,978.01,975.8,0.3154595]
[1610382311493,9.0,978.0,975.26,0.31551827]
[1610382311692,30.0,977.9,975.26,0.31551827]
[1610382311892,80.8604,978.01,974.95,2.469]
[1610382312091,30.0,978.0,975.01,0.31559855]
[1610382312292,80.8604,978.01,975.01,0.31559855]
[1610382312493,80.8604,978.01,976.09,4.00959]
[1610382313192,1.505,978.01,976.09,4.00959]
[1610382314492,4.00959,977.1,976.26,4.00959]
[1610382314694,6.29459,977.1,975.82,0.31533114]
[1610382315093,6.29459,977.1,975.86,0.31530267]
[1610382315293,6.29459,977.1,975.71,0.31535645]
[1610382315594,6.29459,977.1,975.53,2.425]
[1610382315895,6.29459,977.1,975.6,0.31535457]
[1610382316295,6.29459,977.1,975.61,0.31538745]
[1610382316499,2.285,977.1,976.16,4.00959]
[1610382318501,2.285,977.1,975.72,0.3153526]
[1610382318702,2.285,977.1,975.69,2.209]
[1610382319104,2.285,977.1,975.21,0.31536498]
[1610382319303,2.285,977.1,975.54,0.31548169]
[1610382319703,4.00959,977.13,975.3,0.31544584]
[1610382319902,4.00959,977.13,974.91,1.57722922]
[1610382319903,4.00959,977.13,975.18,0.3154386]
[1610382320102,30.0,977.03,975.18,0.3154386]
[1610382320503,30.0,975.56,975.25,0.31539324]
[1610382320702,2.187,975.98,975.25,0.31539324]
[1610382320902,2.187,975.98,974.85,1.57696618]
[1610382320903,2.187,975.98,975.1,2.31]
[1610382321903,2.187,975.98,974.71,0.31544704]
[1610382322303,2.187,975.98,974.42,3.20378815]
[1610382322304,2.187,975.98,975.14,0.31557141]
[1610382322504,4.00959,975.94,975.19,0.31548056]
[1610382322905,4.00959,975.94,975.08,0.31549802]
[1610382323105,4.00959,975.94,974.8,2.472]
[1610382323305,2.187,975.98,974.8,2.472]
[1610382323909,2.187,975.98,975.1,0.3154775]
[1610382324105,2.187,975.98,975.15,0.31548978]
[1610382324505,2.187,975.98,975.17,0.31539652]
[1610382324705,2.187,975.98,975.07,0.31534214]
[1610382325107,2.187,975.98,975.26,0.31533874]
[1610382325505,2.187,975.98,975.18,0.31545891]
[1610382325705,62.7455,976.46,975.44,0.31407329]
[1610382326105,62.7455,976.46,975.49,0.31534244]
[1610382326506,62.7455,976.46,975.75,4.00959]
[1610382326911,62.7455,976.46,975.86,0.31528914]
[1610382327110,62.7455,976.46,975.98,0.31392974]
[1610382327408,62.7455,976.46,976.12,0.31386506]
[1610382328012,62.7455,976.46,976.42,0.31380227]
[1610382328210,2.073,977.13,976.42,0.31380227]
[1610382328420,67.0594,977.99,977.12,4.00959]
[1610382328610,67.0594,977.99,976.42,0.31380227]
[1610382328812,67.0594,977.99,976.45,0.31376153]
[1610382329021,67.0594,977.99,976.06,1.56880763]
[1610382329022,67.0594,977.99,976.23,0.31380145]
[1610382329414,67.0594,977.99,976.18,0.31515115]
[1610382329613,67.0594,977.99,976.09,0.31516341]
[1610382330014,67.0594,977.99,975.7,1.57581707]
[1610382330015,67.0594,977.99,975.96,0.31383223]
[1610382330416,4.00959,976.45,976.15,4.00959]
[1610382330615,5.96559,976.45,975.78,0.31529044]
[1610382331017,5.96559,976.45,975.68,0.63058089]
[1610382331018,5.96559,976.45,975.68,0.31527207]
[1610382331421,5.96559,976.45,975.29,1.57636037]
[1610382331422,5.96559,976.45,975.54,0.31401253]
[1610382331817,5.96559,976.45,975.46,0.3140202]
[1610382332019,5.96559,976.45,975.48,0.31401566]
[1610382332417,4.00959,975.49,975.27,0.31393662]
[1610382332617,2.111,975.71,975.27,0.31393662]
[1610382332817,2.111,975.71,975.06,4.00959]
[1610382332818,2.111,975.71,975.64,0.31396885]
[1610382333218,2.111,975.71,975.43,0.62796]
[1610382333418,2.111,975.71,975.23,1.25592001]
[1610382333618,2.111,975.71,975.51,0.31521132]
[1610382333818,2.111,975.71,975.46,0.31516307]
[1610382334218,2.111,975.71,975.42,0.31393814]
[1610382334417,2.111,975.71,975.03,1.56969072]
[1610382334418,4.00959,975.43,974.8,1.6192866]
[1610382334619,30.0,975.33,975.23,0.63040166]
[1610382335018,30.0,975.33,974.82,0.6305616]
[1610382335422,30.0,975.33,974.35,0.63093524]
[1610382335618,30.0,975.33,973.47,3.15467619]
[1610382335619,30.0,975.33,974.23,0.63095858]
[1610382335817,30.0,975.33,974.29,0.63089381]
[1610382336018,30.0,975.33,974.29,2.86489381]
[1610382336219,30.0,975.23,974.29,2.234]
[1610382336419,4.00959,974.3,974.29,2.234]
[1610382337223,34.00959,974.3,974.29,2.86501876]
[1610382337422,34.00959,974.3,974.29,2.234]
[1610382337621,4.00959,974.3,974.29,2.234]
[1610382338821,2.111,975.71,974.29,2.234]
[1610382339021,9.0,976.43,974.29,2.234]
[1610382339222,30.0,976.33,974.51,0.62848196]
[1610382339422,32.14,976.33,974.59,0.62849743]
[1610382339622,32.14,976.33,974.59,2.90149743]
[1610382340022,2.14,976.33,974.59,2.90149743]
[1610382340223,2.14,976.33,974.79,0.62831065]
[1610382340424,2.14,976.33,974.93,0.62825025]
[1610382340623,2.14,976.33,975.07,4.00959]
[1610382341226,2.14,976.33,975.14,0.62807414]
[1610382341426,2.14,976.33,975.21,0.62803672]
[1610382341626,2.14,976.33,975.21,2.67403672]
[1610382341828,2.14,976.33,975.38,0.63025111]
[1610382342026,68.8268,977.64,975.38,0.63025111]
[1610382342226,68.8268,977.64,975.95,0.62992592]
[1610382342429,60.1778,979.29,975.95,2.16992592]
[1610382342627,60.1778,979.29,976.57,0.62964894]
[1610382342826,60.1778,979.29,976.57,3.06264894]
[1610382343027,60.1778,979.29,976.89,0.62967997]
[1610382343228,60.1778,979.29,977.12,0.62944656]
[1610382343426,60.1778,979.29,977.12,2.71444656]
[1610382343629,60.1778,979.29,977.27,0.62936305]
[1610382343827,60.1778,979.29,977.18,0.62944004]
[1610382344027,62.3258,979.29,977.18,0.62944004]
[1610382344228,30.0,979.19,977.46,0.62934305]
[1610382344428,62.3258,979.29,977.46,0.62934305]
[1610382344630,62.3258,979.29,978.08,4.00959]
[1610382344827,62.3258,979.29,978.08,5.86159]
[1610382345428,30.0,979.19,978.08,5.86159]
[1610382345829,30.0,979.19,978.08,1.852]
[1610382346028,30.0,979.19,977.36,1.756]
[1610382346630,4.00959,977.86,977.72,4.00959]
[1610382346829,4.00959,977.86,977.36,1.756]
[1610382347031,62.3258,979.29,977.36,1.756]
[1610382347430,2.148,979.29,977.36,1.756]
[1610382347831,32.148,979.29,977.36,1.756]
[1610382348031,2.148,979.29,977.36,1.756]
[1610382348231,2.148,979.29,977.49,0.31465607]
[1610382348431,2.148,979.29,977.64,0.31468951]
[1610382348631,4.00959,978.64,978.13,4.00959]
[1610382350331,2.226,979.09,978.13,4.00959]
[1610382350532,4.00959,978.86,978.42,4.00959]
[1610382350732,2.183,978.89,978.42,4.00959]
[1610382351833,29.285,981.99,978.42,4.00959]
[1610382352638,29.285,981.99,978.96,4.00959]
[1610382354237,29.285,981.89,978.96,4.00959]
[1610382354438,31.683,981.89,978.96,4.00959]
[1610382354636,31.683,981.89,980.05,4.00959]
[1610382354837,31.683,981.89,978.63,0.31297518]
[1610382355038,31.683,981.89,978.74,0.3129656]
[1610382355439,31.683,981.89,978.73,0.31298975]
[1610382355839,31.683,981.89,978.72,0.31176284]
[1610382356039,31.683,981.89,978.59,0.3117656]
[1610382356342,31.683,981.89,978.2,1.55882802]
[1610382356343,29.285,981.78,978.26,0.31314686]
[1610382356541,4.00959,979.5,979.17,4.00959]
[1610382356743,6.34159,979.5,978.31,9.0]
[1610382356941,6.34159,979.5,978.26,0.31314686]
[1610382357141,29.285,979.4,978.22,0.31313715]
[1610382357343,29.285,979.4,978.01,0.31318289]
[1610382357744,29.285,979.4,977.89,0.31321662]
[1610382358145,29.285,979.4,977.65,0.31468688]
[1610382358348,36.34159,979.5,977.51,0.31468308]
[1610382358545,36.34159,979.5,977.51,2.06668308]
[1610382358747,4.00959,978.46,978.13,4.00959]
[1610382359144,4.00959,978.46,977.6,0.31469985]
[1610382359345,4.00959,978.46,977.57,0.31473424]
[1610382359745,4.00959,978.46,977.51,1.752]
[1610382359746,2.332,979.5,977.52,0.31471926]
[1610382359943,11.9295,989.02,977.89,0.31321323]
[1610382360147,3.94005,989.02,977.89,2.13421323]
[1610382360346,30.0,988.92,978.4,0.31444235]
[1610382360545,30.0,984.3,978.95,0.3143054]
[1610382360744,4.00959,981.52,981.19,4.00959]
[1610382360944,6.25559,981.52,979.28,0.31425197]
[1610382361344,6.25559,981.52,979.22,0.31418902]
[1610382361544,30.0,981.42,979.22,0.31418902]
[1610382361760,30.0,981.42,979.12,0.62837804]
[1610382361761,30.0,981.42,979.41,0.31419778]
[1610382361959,30.0,981.42,979.44,0.31420485]
[1610382362350,30.0,981.42,979.41,1.795]
[1610382362753,4.00959,980.05,979.71,4.00959]
[1610382362961,34.00959,980.05,979.41,1.795]
[1610382363153,34.00959,980.05,979.01,0.31438907]
[1610382363561,2.229,980.05,978.43,0.31448505]
[1610382363959,1.5857,980.05,978.73,9.0]
[1610382364152,1.4127,980.05,978.85,0.31436579]
[1610382364559,2.246,981.52,979.21,0.31435285]
[1610382364755,2.246,981.52,980.04,4.00959]
[1610382364951,2.246,981.52,980.04,6.44459]
[1610382365153,2.246,981.52,980.04,15.44459]
[1610382365353,2.246,981.52,980.06,0.31408659]
[1610382365847,2.246,981.52,980.29,0.31400036]
[1610382366047,2.0282,988.51,980.29,1.99000036]
[1610382366248,30.0,988.41,980.29,1.99000036]
[1610382366447,31.858,988.41,980.29,1.99000036]
[1610382366649,31.858,988.41,980.29,1.676]
[1610382366848,30.0,988.3,980.29,1.676]
[1610382367349,9.0,988.29,980.29,1.676]
[1610382367548,30.0,988.19,979.95,0.31403665]
[1610382367749,31.724,988.19,979.76,0.31410949]
[1610382367949,9.0,988.18,979.59,0.3141688]
[1610382368150,70.3747,982.91,979.59,0.3141688]
[1610382368349,2.139,982.91,979.54,0.31415577]
[1610382368749,4.00959,981.61,979.73,0.31409986]
[1610382368949,5.72559,981.61,979.73,0.31409986]
[1610382369149,1.681,981.61,979.83,0.31410644]
[1610382369350,1.681,981.61,979.75,0.314138]
[1610382369548,1.546,981.61,979.75,0.314138]
[1610382369750,1.546,981.61,979.58,0.31410909]
[1610382370151,1.546,981.61,979.81,0.31407125]
[1610382370349,1.546,981.61,979.85,0.31405351]
[1610382370752,1.546,981.61,981.6,4.00959]
[1610382370950,2.139,982.91,981.6,4.00959]
[1610382371551,2.139,982.91,980.12,0.31404202]
[1610382371751,32.139,982.91,980.05,1.755]
[1610382372152,2.139,982.91,980.05,1.755]
[1610382372752,2.139,982.91,981.13,4.00959]
[1610382373054,2.139,982.91,980.05,1.755]
[1610382373455,1.01539,983.44,980.05,1.755]
[1610382374656,1.01539,983.44,980.69,4.00959]
[1610382374870,1.05205,983.09,980.05,1.755]
[1610382375056,3.29905,983.09,980.05,1.755]
[1610382375255,30.0,982.99,980.05,1.755]
[1610382375456,30.0,982.99,979.81,2.18]
[1610382375655,30.0,982.99,979.51,0.31426566]
[1610382375857,30.0,982.99,856.57,0.19220041]
[1610382375858,30.0,982.99,979.38,0.31424811]
[1610382376056,30.0,982.99,978.99,1.57124055]
[1610382376057,30.0,982.99,979.42,0.31424084]
[1610382376256,30.0,982.99,979.42,2.73524084]
[1610382376456,1.13407,981.85,979.42,2.421]
[1610382376656,4.00959,979.96,979.93,4.00959]
[1610382376856,4.00959,979.96,979.16,0.94277939]
[1610382376857,2.393,980.07,979.17,0.31427589]
[1610382377056,2.393,980.07,978.88,0.3143764]
[1610382377256,2.393,980.07,979.21,2.433]
[1610382377756,2.164,981.85,979.21,2.433]
[1610382378358,30.0,981.75,979.04,0.31444268]
[1610382378557,1.08234,981.41,979.04,0.31444268]
[1610382378756,4.00959,979.05,978.75,0.31449622]
[1610382378957,6.42659,979.05,978.75,0.31449622]
[1610382379156,6.42659,979.05,978.33,0.31455452]
[1610382379357,6.42659,979.05,978.1,0.31458994]
[1610382379757,6.42659,979.05,977.94,0.3147307]
[1610382379956,36.42659,979.05,977.9,0.31479511]
[1610382380156,6.42659,979.05,977.9,0.31479511]
[1610382380356,6.42659,979.05,977.6,0.3148349]
[1610382380756,4.00959,977.61,977.32,0.31495353]
[1610382380958,5.50159,977.61,977.32,0.31495353]
[1610382381157,5.50159,977.61,977.09,0.31497209]
[1610382381356,5.50159,977.61,976.69,1.57486044]
[1610382381357,5.50159,977.61,976.87,0.31503873]
[1610382381757,5.50159,977.61,976.48,1.57519365]
[1610382381758,5.50159,977.61,976.74,0.31502787]
[1610382381957,30.0,977.51,976.68,0.31503887]
[1610382382358,30.0,977.51,976.58,0.31506857]
[1610382382761,4.00959,976.59,976.47,0.31506473]
[1610382383159,4.00959,976.59,976.37,0.3150843]
[1610382383358,1.517,976.63,976.37,0.3150843]
[1610382383558,1.517,976.63,975.98,1.5754215]
[1610382383559,1.517,976.63,976.44,0.31503315]
[1610382383760,1.517,976.63,976.47,0.31505165]
[1610382384559,0.6141,976.63,976.31,0.31511129]
[1610382384759,0.6141,976.63,976.62,4.00959]
[1610382384958,0.6141,976.63,976.44,0.31510791]
[1610382385160,0.6141,976.63,976.45,0.31512988]
[1610382385562,0.6141,976.63,976.44,0.31510547]
[1610382385761,0.6141,976.63,976.36,0.31511638]
[1610382386563,0.6141,976.63,976.07,1.2605588]
[1610382386761,4.00959,976.08,976.07,1.2605588]
[1610382386961,4.00959,976.08,975.81,1.26057511]
[1610382386962,30.0,975.98,975.81,1.26057511]
[1610382387561,11.1162,975.95,975.76,1.26095896]
[1610382387762,30.0,975.85,975.53,1.26117916]
[1610382388164,30.0,975.85,975.4,1.26135326]
[1610382388363,30.0,975.67,975.4,1.26135326]
[1610382388562,30.0,975.67,975.33,1.26136299]
[1610382388761,4.00959,975.34,975.33,1.26136299]
[1610382388963,4.00959,975.34,974.16,4.41477047]
[1610382388964,34.00959,975.34,975.04,1.2614747]
[1610382389363,34.00959,975.34,973.87,4.41516147]
[1610382389364,34.00959,975.34,974.92,1.26178524]
[1610382389765,34.00959,975.34,974.89,1.2615936]
[1610382389964,30.0,975.23,974.49,1.26224269]
[1610382390366,30.0,975.23,974.21,1.26259706]
[1610382390770,34.00959,974.22,974.21,1.26259706]
[1610382390969,34.00959,974.22,974.03,1.26297604]
[1610382391169,4.00959,974.22,974.03,1.26297604]
[1610382391370,4.00959,974.22,972.86,4.42041615]
[1610382391371,1.986,975.53,973.85,1.26308129]
[1610382391570,1.986,975.53,973.85,2.95108129]
[1610382391770,1.986,975.53,973.87,1.26304908]
[1610382392172,1.986,975.53,973.85,1.688]
[1610382392371,30.0,975.44,973.85,1.688]
[1610382392572,8.639,975.34,973.85,1.688]
[1610382392772,4.00959,974.06,973.85,1.688]
[1610382393173,4.00959,974.06,972.81,3.78923929]
[1610382393174,4.00959,974.06,973.63,1.26315679]
[1610382393374,30.0,973.96,973.42,1.26332177]
[1610382393573,4.00959,974.06,973.42,1.26332177]
[1610382393775,4.00959,974.06,973.42,2.453]
[1610382394375,30.0,973.96,973.42,2.453]
[1610382394777,4.00959,973.43,973.42,2.453]
[1610382394978,2.0629,973.43,973.42,2.453]
[1610382395176,1.681,974.05,973.42,2.453]
[1610382396077,1.681,974.05,973.28,1.26350288]
[1610382396277,1.681,974.05,973.14,1.2638373]
[1610382396476,1.681,974.05,973.0,1.26380621]
[1610382396878,4.00959,973.19,973.11,0.31600928]
[1610382397078,5.97759,973.19,973.09,0.31598483]
[1610382397279,1.968,973.19,973.09,0.31598483]
[1610382397478,1.968,973.19,973.12,0.63204176]
[1610382397677,1.968,973.19,972.63,1.89612527]
[1610382397878,1.968,973.19,972.75,0.31607852]
[1610382398078,1.968,973.19,972.78,0.31608794]
[1610382398479,1.968,973.19,972.66,0.31615425]
[1610382398678,1.968,973.19,972.47,0.94846274]
[1610382398880,30.0,972.57,972.47,0.94846274]
[1610382399079,31.843,972.57,972.52,0.94854859]
[1610382399280,31.843,972.57,971.93,2.52946292]
[1610382399281,31.843,972.57,972.21,0.94877417]
[1610382399683,31.843,972.57,971.92,1.897717]
[1610382400080,31.843,972.57,971.46,1.89841999]
[1610382400480,31.843,972.57,971.28,1.89868654]
[1610382400880,4.00959,971.29,971.2,1.89950385]
[1610382401079,34.00959,971.29,971.17,1.89958122]
[1610382401479,4.00959,971.29,971.06,1.89196103]
[1610382402079,4.00959,971.29,971.08,1.89141122]
[1610382402279,2.425,972.36,970.94,1.89123597]
[1610382402679,2.425,972.36,970.75,2.52164796]
[1610382402680,1.6681,973.19,970.91,1.89152279]
[1610382402881,4.00959,973.98,972.87,4.00959]
[1610382403081,2.00489,978.49,970.9,1.89861512]
[1610382403281,2.00489,978.49,972.02,1.89861947]
[1610382403282,30.0,978.39,972.02,1.89861947]
[1610382403482,9.0,975.69,972.02,1.89861947]
[1610382403681,30.0,975.59,972.22,1.88934505]
[1610382403882,30.0,975.45,972.53,1.88929839]
[1610382404081,31.776,975.45,972.53,1.88929839]
[1610382404281,31.776,975.45,972.74,1.89761412]
[1610382404682,31.776,975.45,972.61,1.89810159]
[1610382404883,4.00959,973.5,972.61,1.89810159]
[1610382405082,5.77359,973.5,972.68,1.89761326]
[1610382405284,5.77359,973.5,972.3,1.89760379]
[1610382405481,5.77359,973.5,972.16,1.89872881]
[1610382405681,9.0,973.49,971.96,2.53163841]
[1610382405882,9.0,973.49,971.66,2.53108304]
[1610382406082,30.0,973.39,971.66,2.53108304]
[1610382406283,30.0,973.39,971.7,1.76864255]
[1610382406483,9.0,973.38,971.39,3.16468404]
[1610382406683,30.0,973.28,971.39,3.16468404]
[1610382406893,30.0,973.28,970.9,4.43055765]
[1610382406894,1.76,973.28,971.12,3.16511595]
[1610382407092,4.00959,972.43,971.65,4.00959]
[1610382407292,5.82859,972.43,971.18,3.16524479]
[1610382407491,5.82859,972.43,971.16,3.16514626]
[1610382407899,5.82859,972.43,971.87,1.58195096]
[1610382408294,5.82859,972.43,972.16,1.58218276]
[1610382408485,1.76,973.28,971.57,3.16436551]
[1610382408683,1.76,973.28,971.59,3.15104591]
[1610382408884,1.13407,979.3,972.42,0.31646481]
[1610382409084,4.00959,973.71,973.16,4.00959]
[1610382409283,5.99159,973.71,971.59,3.14907126]
[1610382409685,5.99159,973.71,972.12,3.14871985]
[1610382410085,5.99159,973.71,973.11,0.94445632]
[1610382410284,5.99159,973.71,972.86,0.94448378]
[1610382410685,5.99159,973.71,972.98,0.94428875]
[1610382411086,4.00959,973.21,972.88,0.94457815]
[1610382411286,5.81059,973.21,972.91,0.94438609]
[1610382411486,5.81059,973.21,972.66,4.00959]
[1610382412487,5.81059,973.21,971.64,3.16305468]
[1610382412688,5.81059,973.21,971.56,3.16359918]
[1610382413088,30.0,973.11,971.79,3.16286809]
[1610382413288,30.0,973.11,971.33,3.16428479]
[1610382413689,2.00489,972.95,971.07,3.16497726]
[1610382413889,30.0,972.85,970.76,3.16540137]
[1610382414290,9.0,972.84,970.72,3.1651414]
[1610382414489,3.50389,972.95,970.72,3.1651414]
[1610382414690,3.50389,972.95,970.26,3.16657945]
[1610382414892,3.50389,972.95,970.22,2.375]
[1610382415089,4.00959,970.23,970.22,2.375]
[1610382415490,2.306,971.07,970.22,2.375]
[1610382416493,61.8095,971.17,970.22,2.375]
[1610382416894,61.8095,971.17,970.32,1.90135434]
[1610382417294,61.8095,971.17,970.4,1.90054104]
[1610382417497,61.8095,971.17,971.16,4.00959]
[1610382418096,61.8095,971.17,970.61,1.90079122]
[1610382418295,2.012,971.17,970.6,1.90085287]
[1610382418498,1.945,971.48,970.6,1.90085287]
[1610382418695,1.945,971.48,970.82,1.58381152]
[1610382418896,1.945,971.48,970.82,4.05581152]
[1610382419096,1.945,971.48,970.98,1.58357396]
[1610382419296,1.945,971.48,971.43,0.63346355]
[1610382419496,4.00959,971.87,971.43,0.63346355]
[1610382419696,4.00959,971.87,971.13,2.53394783]
[1610382420099,4.00959,971.87,971.21,0.31676535]
[1610382420299,4.00959,971.87,971.21,1.81976535]
[1610382420498,4.00959,971.87,971.12,0.6335307]
[1610382420499,4.00959,971.87,971.17,0.31677845]
[1610382420698,4.00959,971.87,971.2,2.467]
[1610382420897,4.00959,971.87,971.04,0.63362663]
[1610382421098,4.00959,971.87,970.67,0.63379103]
[1610382421398,4.00959,971.87,970.66,0.63384944]
[1610382421598,4.00959,970.71,970.66,0.63384944]
[1610382421797,4.00959,970.71,969.65,4.00959]
[1610382421798,4.00959,970.71,970.57,0.63387365]
[1610382422200,4.00959,970.71,970.49,0.63400425]
[1610382422399,4.00959,970.71,970.32,0.63401304]
[1610382422700,1.737,971.3,970.32,0.63401304]
[1610382422899,1.737,971.3,970.29,0.63399429]
[1610382423399,1.737,971.3,970.41,0.63385944]
[1610382423799,1.737,971.3,970.52,0.63390794]
[1610382424000,1.737,971.3,970.55,0.63392875]
[1610382424201,1.737,971.3,969.48,3.8035725]
[1610382424400,1.737,971.3,970.33,0.63409321]
[1610382424801,1.737,971.3,970.18,1.548]
[1610382425601,4.00959,970.19,970.18,1.548]
[1610382426001,1.538,971.03,970.18,1.548]
[1610382426601,1.538,971.03,969.99,0.63429354]
[1610382426801,1.538,971.03,969.96,0.63430482]
[1610382427003,1.538,971.03,969.92,1.796]
[1610382427604,4.00959,969.93,969.92,1.796]
[1610382428406,4.00959,969.93,968.34,3.56151905]
[1610382428806,4.00959,969.93,967.82,4.44290687]
[1610382429007,4.00959,969.93,967.8,4.44343472]
[1610382429408,4.00959,969.93,967.73,4.44399886]
[1610382429608,4.00959,967.74,967.73,4.44399886]
[1610382429811,2.00489,969.85,967.44,4.4454314]
[1610382430009,2.00489,969.85,967.44,1.59]
[1610382430209,1.08234,970.94,967.44,1.59]
[1610382430409,1.08234,970.94,968.16,1.90544823]
[1610382430609,1.08234,970.94,968.16,3.84644823]
[1610382430811,1.08234,970.94,968.16,1.941]
[1610382431209,1.538,971.03,968.61,0.31765327]
[1610382431409,1.08234,972.33,968.61,2.03065327]
[1610382431609,4.00959,968.81,968.64,0.31766137]
[1610382431808,2.361,970.88,968.74,0.31767538]
[1610382432209,2.361,970.88,968.75,0.31759572]
[1610382432410,1.01491,970.59,968.75,0.31759572]
[1610382432809,1.01491,970.59,968.61,1.713]
[1610382433011,1.03822,970.32,968.61,1.713]
[1610382433411,71.6179,969.85,967.65,0.31792694]
[1610382433610,4.00959,967.9,967.65,0.31792694]
[1610382433810,4.00959,967.9,967.69,0.31792689]
[1610382434009,4.00959,967.9,967.69,2.79592689]
[1610382434210,4.00959,967.9,967.79,0.31790946]
[1610382434412,4.00959,967.9,967.69,2.478]
[1610382435614,4.00959,967.7,967.69,2.478]
[1610382435813,4.00959,967.7,967.3,0.31812225]
[1610382436214,4.00959,967.7,965.85,70.98221148]
[1610382436215,4.00959,967.7,967.22,0.31816126]
[1610382436414,4.00959,967.7,967.11,0.31823574]
[1610382436814,4.00959,967.7,966.85,0.31827694]
[1610382437214,4.00959,967.7,966.71,0.3184029]
[1610382437514,4.00959,967.7,966.39,0.31849109]
[1610382437713,4.00959,966.4,966.39,0.31849109]
[1610382437915,1.879,967.43,966.11,0.31903958]
[1610382438115,1.879,967.43,966.11,1.97003958]
[1610382438316,1.08234,966.65,966.11,2.359]
[1610382438514,1.08234,966.65,964.83,0.31878072]
[1610382438515,3.42134,966.65,964.87,0.31916354]
[1610382438916,3.42134,966.65,963.8,0.31918271]
[1610382438917,1.08234,964.88,963.8,0.31918271]
[1610382439115,3.42034,964.88,963.54,0.31926765]
[1610382439516,3.42034,964.88,962.75,0.31954038]
[1610382439715,4.00959,963.06,962.75,0.31954038]
[1610382439915,4.00959,963.06,962.97,0.95831427]
[1610382440315,4.00959,963.06,963.0,0.31944525]
[1610382440516,2.344,963.21,962.8,0.31952559]
[1610382440915,2.344,963.21,962.58,0.31953537]
[1610382441115,2.344,963.21,962.56,0.31959303]
[1610382441615,2.344,963.21,962.17,1.59796517]
[1610382441616,4.00959,962.57,962.31,0.31972475]
[1610382442017,4.00959,962.57,962.3,0.31969613]
[1610382442217,4.00959,962.57,962.1,0.31974011]
[1610382442417,1.991,963.25,962.1,0.31974011]
[1610382442618,1.991,963.25,961.95,0.31971157]
[1610382442818,1.991,963.25,962.05,0.31975445]
[1610382443221,1.991,963.25,961.96,0.31973144]
[1610382443421,1.991,963.25,961.98,2.051]
[1610382443621,1.991,963.25,962.75,4.00959]
[1610382444022,74.6954,964.08,962.75,4.00959]
[1610382444821,2.338,964.88,962.75,4.00959]
[1610382445020,76.8564,965.42,962.75,4.00959]
[1610382445621,76.8564,965.42,964.33,4.00959]
[1610382445823,76.8564,965.42,962.92,2.474]
[1610382446022,79.0194,965.42,962.92,2.474]
[1610382447729,4.00959,963.08,962.98,4.00959]